[Event "*** Titled Tuesday Blitz"]
[Site "Chess.com"]
[Date "2020.11.10"]
[Round "9"]
[White "guillembaches"]
[Black "MPGM"]
[Result "0-1"]
[WhiteElo "2380"]
[BlackElo "2470"]
[TimeControl "180+1"]
[EndTime "11:51:05 PST"]
[Termination "MPGM won on time"]

1. e4 {[%clk 0:03:00.9]} 1... c6 {[%clk 0:02:59.8]} 2. d4 {[%clk 0:03:00.1]}
2... d5 {[%clk 0:03:00.7]} 3. exd5 {[%clk 0:03:00.8]} 3... cxd5 {[%clk
0:03:01.6]} 4. Bd3 {[%clk 0:03:01.1]} 4... Nc6 {[%clk 0:03:02.3]} 5. c3 {[%clk
0:03:01.6]} 5... Qc7 {[%clk 0:03:02.4]} 6. h3 {[%clk 0:03:00.8]} 6... Nf6 {[%clk
0:03:02.4]} 7. Nf3 {[%clk 0:03:01]} 7... g6 {[%clk 0:03:01.7]} 8. O-O {[%clk
0:03:00.9]} 8... Bf5 {[%clk 0:03:02.4]} 9. Be2 {[%clk 0:03:01.2]} 9... Bg7
{[%clk 0:03:01.6]} 10. Re1 {[%clk 0:03:00]} 10... O-O {[%clk 0:03:02.1]} 11. Be3
{[%clk 0:03:00.1]} 11... h6 {[%clk 0:03:02.3]} 12. Nbd2 {[%clk 0:02:57.3]} 12...
g5 {[%clk 0:03:02.5]} 13. Nf1 {[%clk 0:02:47.6]} 13... e6 {[%clk 0:03:00.6]} 14.
N1h2 {[%clk 0:02:32.1]} 14... Bg6 {[%clk 0:02:37.5]} 15. Ng4 {[%clk 0:02:28]}
15... Ne4 {[%clk 0:02:29.7]} 16. Nd2 {[%clk 0:02:09.9]} 16... f5 {[%clk
0:02:14.1]} 17. Nh2 {[%clk 0:02:08.4]} 17... f4 {[%clk 0:02:10.2]} 18. Bg4
{[%clk 0:01:52.7]} 18... fxe3 {[%clk 0:02:04.9]} 19. Bxe6+ {[%clk 0:01:52.6]}
19... Bf7 {[%clk 0:02:00.2]} 20. Bxf7+ {[%clk 0:01:47.6]} 20... Qxf7 {[%clk
0:02:01.1]} 21. Nxe4 {[%clk 0:01:47.1]} 21... exf2+ {[%clk 0:02:00]} 22. Nxf2
{[%clk 0:01:45.9]} 22... Qxf2+ {[%clk 0:02:00.9]} 23. Kh1 {[%clk 0:01:46.4]}
23... Rae8 {[%clk 0:02:00.9]} 24. Rxe8 {[%clk 0:01:42.8]} 24... Rxe8 {[%clk
0:02:01.8]} 25. Ng4 {[%clk 0:01:41.6]} 25... Qe2 {[%clk 0:01:59]} 26. Qb3 {[%clk
0:01:41.7]} 26... Qe6 {[%clk 0:01:47]} 27. Qxb7 {[%clk 0:01:40.2]} 27... h5
{[%clk 0:01:45.3]} 28. Nh2 {[%clk 0:01:33.9]} 28... g4 {[%clk 0:01:43.5]} 29. h4
{[%clk 0:01:29.6]} 29... Rb8 {[%clk 0:01:41.1]} 30. Qa6 {[%clk 0:01:25]} 30...
Rxb2 {[%clk 0:01:40.8]} 31. Rf1 {[%clk 0:01:22.2]} 31... Kh7 {[%clk 0:01:20.3]}
32. Qd3+ {[%clk 0:01:17]} 32... Qe4 {[%clk 0:01:20.2]} 33. Qg3 {[%clk
0:01:13.6]} 33... Rxa2 {[%clk 0:01:17.8]} 34. Re1 {[%clk 0:01:10.3]} 34... Rxg2
{[%clk 0:01:13.3]} 35. Rxe4 {[%clk 0:00:52.8]} 35... Rxg3 {[%clk 0:01:13.5]} 36.
Re6 {[%clk 0:00:53]} 36... Rxc3 {[%clk 0:01:13.1]} 0-1

[Event "*** Titled Tuesday Blitz"]
[Site "Chess.com"]
[Date "2020.11.10"]
[Round "9"]
[White "Sanan_Sjugirov"]
[Black "NikolaGry"]
[Result "0-1"]
[WhiteElo "2818"]
[BlackElo "2651"]
[TimeControl "180+1"]
[EndTime "11:51:06 PST"]
[Termination "NikolaGry won on time"]

1. e4 {[%clk 0:03:00.9]} 1... e5 {[%clk 0:02:43.5]} 2. Nf3 {[%clk 0:02:59.5]}
2... d6 {[%clk 0:02:43.7]} 3. d4 {[%clk 0:02:59.1]} 3... exd4 {[%clk 0:02:44.1]}
4. Nxd4 {[%clk 0:03:00]} 4... Nf6 {[%clk 0:02:44.6]} 5. Nc3 {[%clk 0:03:00.7]}
5... g6 {[%clk 0:02:45.2]} 6. Be2 {[%clk 0:02:51.6]} 6... Bg7 {[%clk 0:02:44.9]}
7. h4 {[%clk 0:02:51.8]} 7... O-O {[%clk 0:02:39.4]} 8. h5 {[%clk 0:02:51.7]}
8... Re8 {[%clk 0:02:39.3]} 9. hxg6 {[%clk 0:02:51.6]} 9... hxg6 {[%clk
0:02:39.4]} 10. Bg5 {[%clk 0:02:48.9]} 10... Nc6 {[%clk 0:02:23]} 11. Qd2 {[%clk
0:02:31.8]} 11... Bd7 {[%clk 0:02:00.4]} 12. Nxc6 {[%clk 0:02:05.9]} 12... Bxc6
{[%clk 0:01:57.3]} 13. O-O-O {[%clk 0:02:00.6]} 13... b5 {[%clk 0:01:46.2]} 14.
Bxb5 {[%clk 0:01:06.8]} 14... Bxb5 {[%clk 0:01:42.4]} 15. Nxb5 {[%clk
0:01:07.7]} 15... Qb8 {[%clk 0:01:23.8]} 16. Bxf6 {[%clk 0:00:26.2]} 16... Bxf6
{[%clk 0:01:23.2]} 17. Nc3 {[%clk 0:00:22.8]} 17... Rxe4 {[%clk 0:01:12.9]} 18.
b3 {[%clk 0:00:06.9]} 18... Re6 {[%clk 0:01:05.4]} 19. Nd5 {[%clk 0:00:05.7]}
19... Bg7 {[%clk 0:01:01.7]} 20. Rde1 {[%clk 0:00:05.7]} 20... Qd8 {[%clk
0:00:46.9]} 21. Kb1 {[%clk 0:00:01.4]} 21... c6 {[%clk 0:00:43]} 22. Nf4 {[%clk
0:00:01.1]} 22... Qf6 {[%clk 0:00:42.1]} 0-1

[Event "*** Titled Tuesday Blitz"]
[Site "Chess.com"]
[Date "2020.11.10"]
[Round "9"]
[White "MoreChessJulia"]
[Black "BikingBrian"]
[Result "1-0"]
[WhiteElo "2109"]
[BlackElo "2263"]
[TimeControl "180+1"]
[EndTime "11:51:07 PST"]
[Termination "MoreChessJulia won by resignation"]

1. d4 {[%clk 0:02:59]} 1... Nf6 {[%clk 0:02:59.7]} 2. c4 {[%clk 0:02:58.6]} 2...
g6 {[%clk 0:03:00.1]} 3. f3 {[%clk 0:02:58.3]} 3... Bg7 {[%clk 0:02:59.5]} 4. e4
{[%clk 0:02:58.3]} 4... O-O {[%clk 0:02:57.8]} 5. Nc3 {[%clk 0:02:58.7]} 5... c5
{[%clk 0:02:55.6]} 6. d5 {[%clk 0:02:57.6]} 6... d6 {[%clk 0:02:53.3]} 7. Bg5
{[%clk 0:02:57]} 7... e6 {[%clk 0:02:48.8]} 8. Qd2 {[%clk 0:02:56.9]} 8... exd5
{[%clk 0:02:48.9]} 9. cxd5 {[%clk 0:02:56.5]} 9... a6 {[%clk 0:02:48.8]} 10. a3
{[%clk 0:02:54.2]} 10... b5 {[%clk 0:02:45]} 11. b4 {[%clk 0:02:54]} 11... c4
{[%clk 0:02:30.3]} 12. Nge2 {[%clk 0:02:52.9]} 12... h6 {[%clk 0:02:15]} 13. Be3
{[%clk 0:02:52.5]} 13... Kh7 {[%clk 0:02:09.6]} 14. h3 {[%clk 0:02:51.8]} 14...
Nh5 {[%clk 0:02:02.5]} 15. g4 {[%clk 0:02:48.1]} 15... Nf6 {[%clk 0:01:54]} 16.
Nd4 {[%clk 0:02:46.3]} 16... Re8 {[%clk 0:01:45.4]} 17. Be2 {[%clk 0:02:44.6]}
17... Ng8 {[%clk 0:01:38.6]} 18. O-O {[%clk 0:02:42.2]} 18... f5 {[%clk
0:01:31.2]} 19. Nc6 {[%clk 0:02:29.4]} 19... Nxc6 {[%clk 0:01:27.2]} 20. dxc6
{[%clk 0:02:28.8]} 20... fxg4 {[%clk 0:01:14.2]} 21. fxg4 {[%clk 0:02:24.4]}
21... Nf6 {[%clk 0:00:40.7]} 22. Bf3 {[%clk 0:02:23.4]} 22... d5 {[%clk
0:00:36.8]} 23. exd5 {[%clk 0:02:19]} 23... Nxd5 {[%clk 0:00:23.8]} 24. Nxd5
{[%clk 0:02:18.5]} 24... Bxa1 {[%clk 0:00:21.9]} 25. Rxa1 {[%clk 0:02:18]} 25...
Be6 {[%clk 0:00:20.4]} 26. Rd1 {[%clk 0:02:11.9]} 26... Bxd5 {[%clk 0:00:18.7]}
27. Bxd5 {[%clk 0:01:57.8]} 27... Qh4 {[%clk 0:00:17.5]} 28. Kg2 {[%clk
0:01:48]} 28... Re7 {[%clk 0:00:14.6]} 29. Bc5 {[%clk 0:01:45.8]} 29... Rg7
{[%clk 0:00:13.6]} 30. Qf2 {[%clk 0:01:39]} 30... Qxf2+ {[%clk 0:00:11.8]} 31.
Bxf2 {[%clk 0:01:37]} 31... Rf8 {[%clk 0:00:11.2]} 32. Bg3 {[%clk 0:01:35.9]}
32... Re7 {[%clk 0:00:10.3]} 33. Bf3 {[%clk 0:01:32.5]} 33... Ref7 {[%clk
0:00:09.4]} 34. c7 {[%clk 0:01:27.3]} 34... c3 {[%clk 0:00:07.6]} 35. Rc1 {[%clk
0:01:23.3]} 35... Rc8 {[%clk 0:00:06.6]} 36. Rxc3 {[%clk 0:01:22]} 36... h5
{[%clk 0:00:07.5]} 37. gxh5 {[%clk 0:01:21.3]} 37... gxh5 {[%clk 0:00:07.6]} 38.
Bxh5 {[%clk 0:01:20.1]} 38... Rd7 {[%clk 0:00:07.7]} 39. Bg4 {[%clk 0:01:20.1]}
39... Rd2+ {[%clk 0:00:07.9]} 40. Kg1 {[%clk 0:01:19.8]} 40... Rg8 {[%clk
0:00:06.5]} 41. c8=Q {[%clk 0:01:19.2]} 41... Rxc8 {[%clk 0:00:06.6]} 1-0

[Event "*** Titled Tuesday Blitz"]
[Site "Chess.com"]
[Date "2020.11.10"]
[Round "9"]
[White "arminmusovic"]
[Black "Omk124"]
[Result "1-0"]
[WhiteElo "2561"]
[BlackElo "2396"]
[TimeControl "180+1"]
[EndTime "11:51:09 PST"]
[Termination "arminmusovic won by resignation"]

1. a3 {[%clk 0:03:00.9]} 1... e5 {[%clk 0:02:58.7]} 2. Nc3 {[%clk 0:03:01.8]}
2... d5 {[%clk 0:02:57.1]} 3. d4 {[%clk 0:03:02]} 3... exd4 {[%clk 0:02:54.2]}
4. Qxd4 {[%clk 0:03:02.9]} 4... Nf6 {[%clk 0:02:54.3]} 5. e4 {[%clk 0:03:01.2]}
5... Be6 {[%clk 0:02:46.3]} 6. Bg5 {[%clk 0:02:52.5]} 6... Be7 {[%clk
0:02:45.6]} 7. O-O-O {[%clk 0:02:48.8]} 7... Nxe4 {[%clk 0:02:45.5]} 8. Bxe7
{[%clk 0:02:43.1]} 8... Qxe7 {[%clk 0:02:46.4]} 9. Qxg7 {[%clk 0:02:36.7]} 9...
Qf6 {[%clk 0:02:33.9]} 10. Qxf6 {[%clk 0:02:33.6]} 10... Nxf6 {[%clk 0:02:34.8]}
11. Nf3 {[%clk 0:02:24.4]} 11... Nbd7 {[%clk 0:02:34]} 12. Nb5 {[%clk
0:02:18.5]} 12... O-O-O {[%clk 0:02:03.7]} 13. Nxa7+ {[%clk 0:01:35.7]} 13...
Kb8 {[%clk 0:02:03.4]} 14. Nb5 {[%clk 0:01:36.6]} 14... Ne4 {[%clk 0:02:04]} 15.
Re1 {[%clk 0:01:36.8]} 15... Nxf2 {[%clk 0:02:03.9]} 16. Rg1 {[%clk 0:01:37]}
16... Rhg8 {[%clk 0:02:04.3]} 17. Nbd4 {[%clk 0:01:27.3]} 17... Ne4 {[%clk
0:02:02.9]} 18. Bd3 {[%clk 0:01:22.7]} 18... Ndc5 {[%clk 0:02:02.2]} 19. b4
{[%clk 0:01:13.4]} 19... Nxd3+ {[%clk 0:01:45.3]} 20. cxd3 {[%clk 0:01:14.3]}
20... Nf2 {[%clk 0:01:45.6]} 21. Kd2 {[%clk 0:01:10.5]} 21... Bg4 {[%clk
0:01:40.4]} 22. Ne5 {[%clk 0:01:02]} 22... Bh5 {[%clk 0:01:38.3]} 23. h3 {[%clk
0:00:57.1]} 23... f6 {[%clk 0:01:35.9]} 24. Nec6+ {[%clk 0:00:50.6]} 24... bxc6
{[%clk 0:01:28.5]} 25. Nxc6+ {[%clk 0:00:51.5]} 25... Kc8 {[%clk 0:01:14.2]} 26.
Nxd8 {[%clk 0:00:41.4]} 26... Kxd8 {[%clk 0:00:24.7]} 27. Ref1 {[%clk
0:00:39.3]} 27... Nxd3 {[%clk 0:00:24.3]} 28. Kxd3 {[%clk 0:00:38]} 28... Rg3+
{[%clk 0:00:25]} 29. Kd4 {[%clk 0:00:34.4]} 29... Rd3+ {[%clk 0:00:25.6]} 30.
Kxd3 {[%clk 0:00:33.1]} 1-0

[Event "*** Titled Tuesday Blitz"]
[Site "Chess.com"]
[Date "2020.11.10"]
[Round "9"]
[White "kai_nov"]
[Black "Gerodot71"]
[Result "0-1"]
[WhiteElo "2333"]
[BlackElo "2487"]
[TimeControl "180+1"]
[EndTime "11:51:11 PST"]
[Termination "Gerodot71 won on time"]

1. d4 {[%clk 0:02:59.5]} 1... Nf6 {[%clk 0:03:00.1]} 2. c4 {[%clk 0:02:58.8]}
2... e6 {[%clk 0:03:00.4]} 3. Nc3 {[%clk 0:02:58.3]} 3... Bb4 {[%clk 0:03:00.7]}
4. f3 {[%clk 0:02:57.4]} 4... O-O {[%clk 0:02:53.8]} 5. e4 {[%clk 0:02:56.9]}
5... Bxc3+ {[%clk 0:02:54.1]} 6. bxc3 {[%clk 0:02:56.4]} 6... Ne8 {[%clk
0:02:55]} 7. f4 {[%clk 0:02:49.9]} 7... c5 {[%clk 0:02:50]} 8. Nf3 {[%clk
0:02:46.2]} 8... Nc6 {[%clk 0:02:46.7]} 9. Bd3 {[%clk 0:02:42.9]} 9... b6 {[%clk
0:02:41.9]} 10. O-O {[%clk 0:02:40.6]} 10... Ba6 {[%clk 0:02:40.5]} 11. e5
{[%clk 0:02:31.2]} 11... f5 {[%clk 0:02:35.6]} 12. exf6 {[%clk 0:02:29.5]} 12...
Nxf6 {[%clk 0:02:33.6]} 13. d5 {[%clk 0:02:13.4]} 13... Na5 {[%clk 0:02:19.1]}
14. dxe6 {[%clk 0:01:41.1]} 14... Bxc4 {[%clk 0:02:14]} 15. exd7 {[%clk
0:00:53.7]} 15... Bxd3 {[%clk 0:02:04]} 16. Qxd3 {[%clk 0:00:51.3]} 16... Qxd7
{[%clk 0:02:04.5]} 17. Qc2 {[%clk 0:00:49.2]} 17... Nc4 {[%clk 0:01:57.1]} 18.
Rd1 {[%clk 0:00:41]} 18... Qc7 {[%clk 0:01:41.5]} 19. Qb3 {[%clk 0:00:34]} 19...
b5 {[%clk 0:01:41.6]} 20. Qxb5 {[%clk 0:00:32.1]} 20... Nb6 {[%clk 0:01:39.3]}
21. Ne5 {[%clk 0:00:20.5]} 21... Nfd5 {[%clk 0:01:34.5]} 22. Bb2 {[%clk
0:00:10.9]} 22... Nxf4 {[%clk 0:01:30.7]} 23. c4 {[%clk 0:00:09.9]} 23... Rae8
{[%clk 0:01:26.2]} 24. Re1 {[%clk 0:00:07.4]} 24... Qb7 {[%clk 0:01:02.8]} 25.
Qc6 {[%clk 0:00:07.4]} 25... Qe7 {[%clk 0:00:55.8]} 26. Bc3 {[%clk 0:00:04]}
26... Qg5 {[%clk 0:00:53.7]} 27. Rad1 {[%clk 0:00:01.3]} 27... Nbd5 {[%clk
0:00:49.8]} 0-1

[Event "*** Titled Tuesday Blitz"]
[Site "Chess.com"]
[Date "2020.11.10"]
[Round "9"]
[White "Lenyas66"]
[Black "Kaslask"]
[Result "0-1"]
[WhiteElo "2448"]
[BlackElo "2370"]
[TimeControl "180+1"]
[EndTime "11:51:11 PST"]
[Termination "Kaslask won by resignation"]

1. d4 {[%clk 0:03:00.9]} 1... Nf6 {[%clk 0:02:59.3]} 2. Bg5 {[%clk 0:03:00.6]}
2... e6 {[%clk 0:02:58.3]} 3. e4 {[%clk 0:03:00.6]} 3... h6 {[%clk 0:02:57.7]}
4. Bxf6 {[%clk 0:03:00.5]} 4... Qxf6 {[%clk 0:02:57.6]} 5. Nf3 {[%clk
0:03:00.8]} 5... g5 {[%clk 0:02:52.2]} 6. c3 {[%clk 0:02:57.9]} 6... d6 {[%clk
0:02:47.6]} 7. Bd3 {[%clk 0:02:53.7]} 7... b6 {[%clk 0:02:46]} 8. e5 {[%clk
0:02:50.4]} 8... Qe7 {[%clk 0:02:45]} 9. O-O {[%clk 0:02:42.4]} 9... Bb7 {[%clk
0:02:44.2]} 10. Qa4+ {[%clk 0:02:40.8]} 10... Qd7 {[%clk 0:02:32.5]} 11. Bb5
{[%clk 0:02:37.6]} 11... Bc6 {[%clk 0:02:28.5]} 12. Bxc6 {[%clk 0:02:36.3]}
12... Qxc6 {[%clk 0:02:27.3]} 13. Qb3 {[%clk 0:01:59.4]} 13... Nd7 {[%clk
0:02:23]} 14. Re1 {[%clk 0:01:58.4]} 14... dxe5 {[%clk 0:02:15.9]} 15. Nxe5
{[%clk 0:01:49.5]} 15... Nxe5 {[%clk 0:02:13.4]} 16. Rxe5 {[%clk 0:01:49.4]}
16... Bg7 {[%clk 0:02:07.2]} 17. Re2 {[%clk 0:01:49.3]} 17... O-O {[%clk
0:02:04.3]} 18. Nd2 {[%clk 0:01:49.1]} 18... b5 {[%clk 0:01:58.7]} 19. a3 {[%clk
0:01:45.1]} 19... a5 {[%clk 0:01:56.2]} 20. h4 {[%clk 0:01:38.9]} 20... a4
{[%clk 0:01:54.9]} 21. Qd1 {[%clk 0:01:34.3]} 21... gxh4 {[%clk 0:01:47.8]} 22.
Re4 {[%clk 0:01:28.9]} 22... h3 {[%clk 0:01:47.4]} 23. Qh5 {[%clk 0:01:04.2]}
23... f5 {[%clk 0:01:43.9]} 24. Rae1 {[%clk 0:00:46.9]} 24... fxe4 {[%clk
0:01:42.6]} 25. Rxe4 {[%clk 0:00:47.1]} 25... hxg2 {[%clk 0:01:40]} 26. Rg4
{[%clk 0:00:43.8]} 26... Rf6 {[%clk 0:01:37.6]} 27. Ne4 {[%clk 0:00:42.8]} 27...
Rf7 {[%clk 0:01:34.2]} 28. Qg6 {[%clk 0:00:23.8]} 28... Qd7 {[%clk 0:01:13.9]}
29. Nf6+ {[%clk 0:00:16.7]} 29... Rxf6 {[%clk 0:01:12.2]} 30. Qxf6 {[%clk
0:00:16.9]} 30... e5 {[%clk 0:00:58.8]} 31. Qf3 {[%clk 0:00:09.8]} 31... Rf8
{[%clk 0:00:54.2]} 32. Qxg2 {[%clk 0:00:09.8]} 32... exd4 {[%clk 0:00:52.2]} 33.
cxd4 {[%clk 0:00:09.5]} 33... Qe7 {[%clk 0:00:49.7]} 0-1

[Event "*** Titled Tuesday Blitz"]
[Site "Chess.com"]
[Date "2020.11.10"]
[Round "9"]
[White "alexrustemov"]
[Black "FMKonstantin_Twitch"]
[Result "1/2-1/2"]
[WhiteElo "2709"]
[BlackElo "2565"]
[TimeControl "180+1"]
[EndTime "11:51:12 PST"]
[Termination "Game drawn by agreement"]

1. d4 {[%clk 0:03:00.9]} 1... Nf6 {[%clk 0:02:58.5]} 2. Nf3 {[%clk 0:03:01.1]}
2... g6 {[%clk 0:02:58.7]} 3. c4 {[%clk 0:03:01.6]} 3... Bg7 {[%clk 0:02:59.6]}
4. g3 {[%clk 0:03:02.2]} 4... O-O {[%clk 0:03:00.5]} 5. Bg2 {[%clk 0:03:02.8]}
5... c5 {[%clk 0:03:01.1]} 6. Nc3 {[%clk 0:03:02.8]} 6... cxd4 {[%clk 0:03:02]}
7. Nxd4 {[%clk 0:03:03.3]} 7... Nc6 {[%clk 0:03:02.4]} 8. O-O {[%clk 0:03:02.8]}
8... d6 {[%clk 0:03:02.4]} 9. Nxc6 {[%clk 0:03:01.4]} 9... bxc6 {[%clk
0:03:03.3]} 10. Bxc6 {[%clk 0:03:01.7]} 10... Rb8 {[%clk 0:03:03.7]} 11. Bg2
{[%clk 0:02:58]} 11... Be6 {[%clk 0:03:02.8]} 12. Qd3 {[%clk 0:02:56.1]} 12...
Qa5 {[%clk 0:03:00.9]} 13. Nb5 {[%clk 0:02:46.3]} 13... Rfc8 {[%clk 0:02:53.5]}
14. Bd2 {[%clk 0:02:43.7]} 14... Bxc4 {[%clk 0:02:51.1]} 15. Bxa5 {[%clk
0:02:06]} 15... Bxd3 {[%clk 0:02:50.3]} 16. exd3 {[%clk 0:02:06.4]} 16... Rxb5
{[%clk 0:02:49.7]} 17. b4 {[%clk 0:01:57.8]} 17... Nd5 {[%clk 0:02:45.3]} 18.
Bxd5 {[%clk 0:01:07.5]} 18... Rxd5 {[%clk 0:02:43.2]} 19. Rac1 {[%clk 0:01:07]}
19... Rxc1 {[%clk 0:02:41.3]} 20. Rxc1 {[%clk 0:01:07.9]} 20... Bd4 {[%clk
0:02:37.2]} 21. Kf1 {[%clk 0:01:02.4]} 21... Kg7 {[%clk 0:02:26.1]} 22. a4
{[%clk 0:01:01.9]} 22... g5 {[%clk 0:02:19.7]} 23. g4 {[%clk 0:00:56.3]} 23...
e5 {[%clk 0:02:08]} 24. f3 {[%clk 0:00:51.4]} 24... Be3 {[%clk 0:02:03.8]} 25.
Rc3 {[%clk 0:00:49.6]} 25... Bd2 {[%clk 0:01:59.5]} 26. Rb3 {[%clk 0:00:48.1]}
26... Rd4 {[%clk 0:01:59]} 27. Ke2 {[%clk 0:00:47.6]} 27... Bf4 {[%clk
0:01:54.1]} 28. h3 {[%clk 0:00:43.4]} 28... d5 {[%clk 0:01:51.7]} 29. Bc7 {[%clk
0:00:40.9]} 29... e4 {[%clk 0:01:50.8]} 30. Bxf4 {[%clk 0:00:37]} 30... exf3+
{[%clk 0:01:43.7]} 31. Kxf3 {[%clk 0:00:34.3]} 31... Rxf4+ {[%clk 0:01:44.6]}
32. Ke3 {[%clk 0:00:33.6]} 32... Kf6 {[%clk 0:01:42.7]} 33. a5 {[%clk
0:00:33.3]} 33... a6 {[%clk 0:01:42.5]} 34. d4 {[%clk 0:00:22]} 34... h5 {[%clk
0:01:36.8]} 35. b5 {[%clk 0:00:19.2]} 35... axb5 {[%clk 0:01:33.4]} 36. Rxb5
{[%clk 0:00:17.9]} 36... hxg4 {[%clk 0:01:31]} 37. hxg4 {[%clk 0:00:13.8]} 37...
Rxg4 {[%clk 0:01:30.3]} 38. Rxd5 {[%clk 0:00:13.6]} 38... Rg3+ {[%clk
0:01:30.3]} 39. Ke4 {[%clk 0:00:13.4]} 39... Ra3 {[%clk 0:01:31.2]} 40. Rd6+
{[%clk 0:00:13.6]} 40... Ke7 {[%clk 0:01:31]} 41. Rd5 {[%clk 0:00:11.7]} 41...
g4 {[%clk 0:01:29.8]} 42. Rg5 {[%clk 0:00:10.5]} 42... g3 {[%clk 0:01:27.8]} 43.
Kf4 {[%clk 0:00:09.8]} 43... Ke6 {[%clk 0:01:23.9]} 44. Rxg3 {[%clk 0:00:09.7]}
44... Rxa5 {[%clk 0:01:23.1]} 1/2-1/2

[Event "*** Titled Tuesday Blitz"]
[Site "Chess.com"]
[Date "2020.11.10"]
[Round "9"]
[White "FormerProdigy"]
[Black "LyonBeast"]
[Result "0-1"]
[WhiteElo "2888"]
[BlackElo "3071"]
[TimeControl "180+1"]
[EndTime "11:51:14 PST"]
[Termination "LyonBeast won by resignation"]

1. d4 {[%clk 0:03:00.9]} 1... Nf6 {[%clk 0:02:56.5]} 2. c4 {[%clk 0:03:01]} 2...
g6 {[%clk 0:02:56.5]} 3. Nc3 {[%clk 0:03:01]} 3... Bg7 {[%clk 0:02:57.1]} 4. e4
{[%clk 0:03:00.4]} 4... d6 {[%clk 0:02:55.7]} 5. Nf3 {[%clk 0:03:00.5]} 5... O-O
{[%clk 0:02:55.6]} 6. Be2 {[%clk 0:03:01.3]} 6... Na6 {[%clk 0:02:48]} 7. O-O
{[%clk 0:03:02.2]} 7... e5 {[%clk 0:02:48]} 8. Re1 {[%clk 0:02:54.7]} 8... c6
{[%clk 0:02:36.9]} 9. Be3 {[%clk 0:02:41.6]} 9... Qe7 {[%clk 0:02:29.6]} 10. c5
{[%clk 0:02:30.3]} 10... dxc5 {[%clk 0:02:23.9]} 11. dxe5 {[%clk 0:02:24.4]}
11... Ng4 {[%clk 0:02:23.7]} 12. Bg5 {[%clk 0:01:51.9]} 12... Qe6 {[%clk
0:02:20.4]} 13. Bxa6 {[%clk 0:01:41]} 13... bxa6 {[%clk 0:02:21.3]} 14. Bf4
{[%clk 0:01:00.7]} 14... Nxe5 {[%clk 0:02:20.5]} 15. Nxe5 {[%clk 0:01:01.6]}
15... Bxe5 {[%clk 0:02:21.3]} 16. Bxe5 {[%clk 0:01:02.2]} 16... Qxe5 {[%clk
0:02:22.2]} 17. Qc2 {[%clk 0:00:48.4]} 17... Be6 {[%clk 0:02:20.4]} 18. Na4
{[%clk 0:00:44.9]} 18... c4 {[%clk 0:02:20.8]} 19. b3 {[%clk 0:00:45.4]} 19...
Rab8 {[%clk 0:02:17]} 20. Rab1 {[%clk 0:00:29.5]} 20... Rb4 {[%clk 0:02:15.5]}
21. Nb2 {[%clk 0:00:18]} 21... cxb3 {[%clk 0:02:14]} 22. axb3 {[%clk 0:00:18.9]}
22... Rxb3 {[%clk 0:02:14.2]} 23. Nc4 {[%clk 0:00:17.5]} 23... Rxb1 {[%clk
0:02:12.2]} 24. Rxb1 {[%clk 0:00:16.8]} 24... Qc5 {[%clk 0:02:12.5]} 25. Ne3
{[%clk 0:00:16.6]} 25... Qxc2 {[%clk 0:02:12.3]} 26. Nxc2 {[%clk 0:00:17.5]}
26... Rd8 {[%clk 0:02:06.1]} 27. Ra1 {[%clk 0:00:15.4]} 27... Bc4 {[%clk
0:02:00.4]} 28. f3 {[%clk 0:00:14]} 28... c5 {[%clk 0:01:59]} 29. Ne3 {[%clk
0:00:13.9]} 29... Bb5 {[%clk 0:01:59.6]} 30. Nd5 {[%clk 0:00:13.8]} 30... Kg7
{[%clk 0:02:00]} 31. Kf2 {[%clk 0:00:13.9]} 31... Bc4 {[%clk 0:01:56.1]} 32. g4
{[%clk 0:00:11.2]} 32... Bxd5 {[%clk 0:01:54.8]} 33. exd5 {[%clk 0:00:12.1]}
33... Rxd5 {[%clk 0:01:53.3]} 34. Rxa6 {[%clk 0:00:12.2]} 34... Rd7 {[%clk
0:01:52.4]} 35. Rc6 {[%clk 0:00:12.3]} 35... a5 {[%clk 0:01:49.9]} 36. Ra6
{[%clk 0:00:12.1]} 36... Rd2+ {[%clk 0:01:48]} 37. Kg3 {[%clk 0:00:11.3]} 37...
c4 {[%clk 0:01:40.7]} 38. Rxa5 {[%clk 0:00:10.5]} 38... c3 {[%clk 0:01:41.3]}
39. Rc5 {[%clk 0:00:10.4]} 39... c2 {[%clk 0:01:41.4]} 40. g5 {[%clk 0:00:07.9]}
40... Kf8 {[%clk 0:01:40.2]} 41. h4 {[%clk 0:00:06.5]} 41... Ke7 {[%clk
0:01:40.7]} 42. Kf4 {[%clk 0:00:06.5]} 42... Re2 {[%clk 0:01:38.4]} 43. Rc6
{[%clk 0:00:05.8]} 43... Kd7 {[%clk 0:01:38.6]} 44. Rc5 {[%clk 0:00:05.2]} 44...
Kd6 {[%clk 0:01:39]} 45. Rc8 {[%clk 0:00:03.6]} 45... Kd5 {[%clk 0:01:39.2]} 46.
h5 {[%clk 0:00:03.2]} 46... Kd4 {[%clk 0:01:38]} 47. hxg6 {[%clk 0:00:02.5]}
47... hxg6 {[%clk 0:01:37.9]} 48. Kg3 {[%clk 0:00:02.4]} 48... Kd3 {[%clk
0:01:38.1]} 0-1